Cogmind - Beta 12 @@@ ROGUE MODE // 2023.11.23 @ 19:59:59 Player: NEO Result: Destroyed by as-37720 with Assembled Heavy Rifle Performance ------------- Evolutions (0) 0 Regions Visited (4) 800 Robots Destroyed (25) 125 Value Destroyed (384) 384 Prototype IDs (2) 40 Alien Tech Used (0) 0 Bonus (0) 0 TOTAL SCORE: 1349 Bonus ------- None Cogmind --------- Core Integrity 0/250 Matter 264/300 Energy 89/125 System Corruption 2% Temperature Cool (30) Movement Walking (190) Ox1 Location -9/Mines Parts ------- > --- POWER (1) -------- Light Ion Engine > --- PROPULSION (2) --- Aluminum Leg > --- UTILITY (2) ------ Medium Storage Unit > --- WEAPON (2) ------- Light Assault Rifle Grenade Launcher > --- INVENTORY (10) --- Light Ion Engine Medium Matter Pod (100) High-capacity Matter Pod (200) High-capacity Matter Pod (200) Core Shielding Grenade Launcher Peak State ------------ > --- POWER ------------ Ion Engine > --- PROPULSION ------- Light Treads Light Treads > --- UTILITY ---------- Medium Storage Unit Signal Interpreter > --- WEAPON ----------- Light Assault Rifle Grenade Launcher > --- INVENTORY -------- Light Ion Engine Light Ion Engine Light Ion Engine Light Fission Core Aluminum Leg Core Shielding Grenade Launcher Grenade Launcher Grenade Launcher [Rating: 8] Favorites ----------- Power Ion Engine Engine Ion Engine Propulsion Light Treads Treads Light Treads Leg Aluminum Leg Utility Signal Interpreter Storage Medium Storage Unit Processor Signal Interpreter Protection Core Shielding Weapon Light Assault Rifle Energy Gun EM Pulse Gun Ballistic Gun Light Assault Rifle Launcher Grenade Launcher Build | -11 -10 -10 -10 -9 ------- Run | Jun Mat Min Exi Min Slots Evolved . | . . . . . Power . | . . . . . Propulsion . | . . . . . Utility . | . . . . . Weapon . | . . . . . Parts Attached 17 | 6 6 . . 5 Power 4 | 1 2 . . 1 Engine 4 | 1 2 . . 1 Core . | . . . . . Reactor . | . . . . . Propulsion 3 | 2 . . . 1 Treads 2 | 2 . . . . Leg 1 | . . . . 1 Wheel . | . . . . . Hover . | . . . . . Flight . | . . . . . Utility 4 | 1 3 . . . Device . | . . . . . Storage 2 | 1 1 . . . Processor 1 | . 1 . . . Hackware . | . . . . . Protection 1 | . 1 . . . Artifact . | . . . . . Weapon 6 | 2 1 . . 3 Energy Gun 1 | 1 . . . . Energy Cannon . | . . . . . Ballistic Gun 2 | 1 . . . 1 Ballistic Cannon . | . . . . . Launcher 3 | . 1 . . 2 Special Weapon . | . . . . . Impact Weapon . | . . . . . Slashing Weapon . | . . . . . Piercing Weapon . | . . . . . Special Melee Weapon . | . . . . . Unidentified Prototypes . | . . . . . Parts Lost 8 | . 1 . . 7 Power 2 | . 1 . . 1 Propulsion 2 | . . . . 2 Utility 1 | . . . . 1 Weapon 3 | . . . . 3 Highest Loss Streak 5 | . 1 . . 5 To Critical Strikes . | . . . . . Average Slot Usage (%) 93 | . 86 100 100 92 Engine 13 | . 12 14 14 12 Treads 27 | . 28 28 28 25 Storage 14 | . 14 14 14 14 Processor 11 | . 7 14 14 14 Ballistic Gun 13 | . 14 14 14 12 Launcher 11 | . 8 14 14 12 Naked Turns . | . . . . . Heaviest Build 19 | 9 19 19 19 19 Greatest Support 40 | 40 40 40 40 40 Greatest Overweight (x) 5 | . . . . 5 Average Overweight (x) . | . . . . . Largest Inventory Capacity 10 | 8 10 10 10 10 Average Capacity 9 | 7 8 10 10 10 Most Carried 10 | 5 7 8 10 10 Average Carried 6 | 1 4 7 8 9 Final Capacity 10 | 8 10 10 10 10 Final Carried 10 | 1 7 8 10 6 Class Distribution -------------------- 100% | Mutant Dominant Class ---------------- Mutant | -10/Materials Mutant | -10/Mines Mutant | -10/Exiles Mutant | -9/Mines Resources | -11 -10 -10 -10 -9 ----------- Run | Jun Mat Min Exi Min Matter Collected 563 | 183 207 99 48 26 Remotely . | . . . . . Salvage Created 593 | . 446 116 . 31 Parts 41 | . 33 6 . 2 Haulers Intercepted 1 | . 1 . . . Recyclers Shooed 3 | . 2 1 . . Parts Field Recycled . | . . . . . Retrieved Matter . | . . . . . Parts Self-Destructed . | . . . . . Prevented . | . . . . . Kills | -11 -10 -10 -10 -9 ------- Run | Jun Mat Min Exi Min Combat Hostiles Destroyed 19 | . 9 3 . 7 Guns 6 | . 5 1 . . AOE 13 | . 4 2 . 7 Classes Destroyed 10 | . 9 . . 1 Worker 3 | . 3 . . . Builder 1 | . 1 . . . Tunneler 1 | . 1 . . . Hauler 1 | . 1 . . . Recycler 3 | . 2 1 . . Operator 1 | . 1 . . . Watcher 1 | . 1 . . . Swarmer 8 | . 3 3 . 2 Grunt 6 | . 6 . . . Assembled 5 | . . . . 5 Best Kill Streak 8 | . 8 3 . 5 Combat Bots Only 5 | . 4 3 . 5 Max Kills in Single Turn 4 | . 3 3 . 4 Gunslinging . | . . . . . Exploded 4 | . 1 2 . 4 Melee . | . . . . . Uniques/NPCs Destroyed . | . . . . . Combat | -11 -10 -10 -10 -9 -------- Run | Jun Mat Min Exi Min Damage Taken 1147 | . 351 . . 796 Core 267 | . 44 . . 223 Absorbed by Shields . | . . . . . Core Remaining (%) 100 | 100 . . . . Volleys Fired 80 | . 65 2 . 13 Largest 2 | . 2 2 . 2 Hottest 50 | . 50 50 . 50 Shots Fired 99 | . 81 3 . 15 Gun 79 | . 65 2 . 12 Cannon . | . . . . . Launcher 20 | . 16 1 . 3 Special . | . . . . . Kinetic 79 | . 65 2 . 12 Thermal . | . . . . . Explosive 20 | . 16 1 . 3 Electromagnetic . | . . . . . Robot Hit Streak 9 | . 9 2 . 7 Robot Miss Streak 2 | . 2 . . 1 Penetration Max . | . . . . . Secondary Targets . | . . . . . Shots Hit Robots 64 | . 51 2 . 11 Core Hits 58 | . 36 5 . 17 Critical Kills . | . . . . . Critical Parts Destroyed . | . . . . . Critical Strikes . | . . . . . Melee Attacks . | . . . . . Impact . | . . . . . Slashing . | . . . . . Piercing . | . . . . . Sneak Attacks . | . . . . . Combat Hostiles . | . . . . . Follow-up Attacks . | . . . . . Damage Inflicted 1777 | . 1161 106 . 510 Guns 422 | . 340 18 . 64 Cannons . | . . . . . Explosions 1342 | . 821 75 . 446 Melee . | . . . . . Ramming 13 | . . 13 . . Kinetic 422 | . 340 18 . 64 Thermal . | . . . . . Explosive 1342 | . 821 75 . 446 Electromagnetic . | . . . . . Impact . | . . . . . Slashing . | . . . . . Piercing . | . . . . . Highest Corruption . | . . . . . Average Corruption . | . . . . . Corruption Purged . | . . . . . Corruption Blocked . | . . . . . Overload Shots . | . . . . . Overflow Damage 21 | . . . . 21 Projectiles . | . . . . . Explosions 21 | . . . . 21 Melee . | . . . . . Knockbacks . | . . . . . Impact . | . . . . . Kinetic . | . . . . . Secondary . | . . . . . Self-Inflicted Damage 132 | . 24 . . 108 Shots 4 | . 1 . . 3 Rammed 4 | . . 4 . . Targets Rammed 4 | . . 4 . . Kicked . | . . . . . Crushed . | . . . . . Highest Temperature 30 | . 22 10 . 30 Average Temperature 10 | . 9 7 . 17 Received Heat Transfer 166 | . 126 . . 40 Siege Activations . | . . . . . Robots Corrupted . | . . . . . Combat Hostiles . | . . . . . Parts Fried . | . . . . . Impact Corruptions . | . . . . . Robots Melted . | . . . . . Combat Hostiles . | . . . . . Parts Melted . | . . . . . Heat Transferred . | . . . . . Parts Sabotaged . | . . . . . Parts Stolen . | . . . . . Parts Stripped . | . . . . . Power Chain Reactions . | . . . . . Missiles Intercepted . | . . . . . Alert | -11 -10 -10 -10 -9 ------- Run | Jun Mat Min Exi Min Peak Influence 258 | . 258 150 . 85 Initial 69 | . . 69 . . Average 91 | . 97 147 . 49 Maximum Alert Level 1 | . 1 . . . Low Security (%) 98 | 100 97 100 . 100 Level 1 1 | . 2 . . . Level 2 . | . . . . . Level 3 . | . . . . . Level 4 . | . . . . . Level 5 . | . . . . . High Security . | . . . . . Max Security . | . . . . . Squads Dispatched 2 | . 2 . . . Investigation 1 | . 1 . . . Extermination . | . . . . . Reinforcement 1 | . 1 . . . Assault . | . . . . . Garrison . | . . . . . Intercept . | . . . . . Searches Triggered . | . . . . . Construction Impeded . | . . . . . Haulers Reinforced . | . . . . . Active Scanning Responses . | . . . . . Cargo Convoy Interrupts . | . . . . . Stealth | -11 -10 -10 -10 -9 --------- Run | Jun Mat Min Exi Min Distress Signals 1 | . 1 . . . Communications Jammed . | . . . . . Distress Signals . | . . . . . Times Spotted 37 | . 21 . . 16 Peak Tracking Total 10 | . 4 . . 10 Tactical Retreats . | . . . . . Traps | -11 -10 -10 -10 -9 ------- Run | Jun Mat Min Exi Min Traps Triggered 1 | . 1 . . . Indirectly . | . . . . . Trap Hack Attempts . | . . . . . Triggered . | . . . . . Disarmed . | . . . . . Reprogrammed . | . . . . . Reused . | . . . . . Traps Extracted . | . . . . . Installed . | . . . . . Triggered . | . . . . . Machines | -11 -10 -10 -10 -9 ---------- Run | Jun Mat Min Exi Min Machines Disabled 2 | . 1 . . 1 Max in Single Turn 1 | . 1 . . 1 Machines Repaired . | . . . . . Machines Sabotaged . | . . . . . Overloaded Fab Kills . | . . . . . Hacking | -11 -10 -10 -10 -9 --------- Run | Jun Mat Min Exi Min Machines Accessed 3 | . 2 . 1 . Terminals 2 | . 2 . . . Fabricators . | . . . . . Repair Stations . | . . . . . Recycling Units . | . . . . . Scanalyzers . | . . . . . Garrison Access . | . . . . . Total Hacks 7 | . 6 . 1 . Successful 4 | . 3 . 1 . Failed 3 | . 3 . . . Catastrophic . | . . . . . Database Lockouts . | . . . . . Manual . | . . . . . Terminals 6 | . 6 . . . Fabricators . | . . . . . Repair Stations . | . . . . . Recycling Units . | . . . . . Scanalyzers . | . . . . . Garrison Access . | . . . . . Terminal Hacks 4 | . 3 . 1 . Record 1 | . . . 1 . Prototype ID Bank 1 | . 1 . . . Emergency Access Points 1 | . 1 . . . Registered Components 1 | . 1 . . . Fabricator Hacks . | . . . . . Repair Station Hacks . | . . . . . Recycling Unit Hacks . | . . . . . Scanalyzer . | . . . . . Garrison Access Hacks . | . . . . . Unauthorized Hacks . | . . . . . Terminals . | . . . . . Fabricators . | . . . . . Repair Stations . | . . . . . Recycling Units . | . . . . . Scanalyzers . | . . . . . Garrison Access . | . . . . . Data Cores Recovered . | . . . . . Used . | . . . . . Hacking Detections . | . . . . . Full Trace Events . | . . . . . Feedback Events . | . . . . . Feedback Blocked . | . . . . . Robot Schematics Acquired . | . . . . . Robots Built . | . . . . . Authchips . | . . . . . Time . | . . . . . Total Robot Build Rating . | . . . . . Part Schematics Acquired . | . . . . . Parts Built . | . . . . . Authchips . | . . . . . Time . | . . . . . Total Part Build Rating . | . . . . . Parts Repaired . | . . . . . Time . | . . . . . Parts Recycled . | . . . . . Recycled Matter . | . . . . . Retrieved Matter . | . . . . . Retrieved Components . | . . . . . Parts Scanalyzed . | . . . . . Part Schematics Acquired . | . . . . . Parts Damaged . | . . . . . Bothacking | -11 -10 -10 -10 -9 ------------ Run | Jun Mat Min Exi Min Used RIF Installer . | . . . . . Robots Hacked . | . . . . . Non-combat . | . . . . . Combat . | . . . . . Robot Hacks Applied . | . . . . . Relay Couplers Released . | . . . . . Fabnet Peak Effective % . | . . . . . Robots Rewired . | . . . . . Allies Hacked . | . . . . . Hacks Repelled . | . . . . . Allies | -11 -10 -10 -10 -9 -------- Run | Jun Mat Min Exi Min Total Allies . | . . . . . Largest Group . | . . . . . Highest-Rated Group . | . . . . . Highest-Rated Ally . | . . . . . Total Orders . | . . . . . Ally Attacks . | . . . . . Total Damage . | . . . . . Kills . | . . . . . Allies Corrupted . | . . . . . Allies Melted . | . . . . . Intel | -11 -10 -10 -10 -9 ------- Run | Jun Mat Min Exi Min Robot Analysis Total . | . . . . . Derelict Logs Recovered . | . . . . . Drone Launches . | . . . . . Drone Recoveries . | . . . . . Exploration | -11 -10 -10 -10 -9 ------------- Run | Jun Mat Min Exi Min Turns Passed 1407 | 56 555 121 568 107 Spaces Moved 755 | 39 253 69 351 43 Core 22 | 17 . . . 5 Treads 733 | 22 253 69 351 38 Legs . | . . . . . Wheels . | . . . . . Hover . | . . . . . Flight . | . . . . . Fastest Speed 50 | 50 160 160 160 160 Average Speed 157 | 112 160 160 160 166 Slowest Speed 300 | 160 160 160 160 300 Overloaded Moves . | . . . . . Propulsion Burnouts . | . . . . . Robots Hopped . | . . . . . Cave-ins Triggered . | . . . . . Exploration Rate (%) 27 | 3 49 20 56 10 Regions Visited 4 Branch Regions 3 Pre-discovered Areas 1 | . . . . 1 Known Exits Taken 3 | . 1 1 1 . Unknown Exits Taken 1 | 1 . . . . Scrap Searched . | . . . . . Spaces Dug . | . . . . . Terrain Destroyed 80 | . 45 6 . 29 Melee . | . . . . . Projectile . | . . . . . AOE 80 | . 45 6 . 29 Terrain Rammed . | . . . . . Walls Destroyed . | . . . . . Machines Disabled . | . . . . . Actions | -11 -10 -10 -10 -9 --------- Run | Jun Mat Min Exi Min Total 886 | 52 334 75 359 66 Wait 4 | . . . . 4 Move 751 | 38 252 68 350 43 Hop . | . . . . . Pick Up 24 | 7 10 1 5 1 Fast Attach . | . . . . . Attach 14 | 6 3 . . 5 Detach . | . . . . . Swap 3 | . 3 . . . Drop 5 | 1 1 . 3 . Fire 80 | . 65 2 . 13 Melee . | . . . . . Ram . | . . . . . Kick . | . . . . . Crush 4 | . . 4 . . Escape Stasis . | . . . . . Rewire 1 | . . . 1 . Trap . | . . . . . Miscellaneous . | . . . . . Route ------- -11/Junkyard -10/Materials -10/Mines -10/Exiles -9/Mines History --------- Turn | Location | Event 6 | -11/Junkyard | Discovered new exit (range 16) 57 | -11/Junkyard | Entered Materials 318 | -10/Materials | Build established: Mutant 589 | -10/Materials | Discovered new exit (range 10) 610 | -10/Materials | Identified exit to Mines 612 | -10/Materials | Entered Mines 725 | -10/Mines | Deemed a non-threat by the Exiles lab entrance 725 | -10/Mines | Discovered new exit (range 5) 730 | -10/Mines | Identified exit to Exiles 733 | -10/Mines | Entered Exiles 775 | -10/Exiles | Met 8R-AWN 802 | -10/Exiles | Met EX-HEX 902 | -10/Exiles | Met EX-DEC 994 | -10/Exiles | Discovered new exit (range 14) 1299 | -10/Exiles | Identified exit to Mines 1301 | -10/Exiles | Entered Mines 1364 | -9/Mines | Assembled infested the area 1390 | -9/Mines | Learned location of Storage (-9) 1393 | -9/Mines | Core integrity fell below 50% 1399 | -9/Mines | Core integrity fell below 20% 1408 | -9/Mines | Destroyed by as-37720 with Assembled Heavy Rifle Last Messages --------------- you? I'm here trying to lose some heat after our second raid on Storage failed. Whatever you do stay away from that place, they've tightened security following our previous successful raids." World map updated: -9/Storage. 01390_ Lgt. Treads destroyed. 01392_ OR-Q6W(g): "We scattered so the Unaware couldn't effectively use their advantage in numbers, and I suggest you do the same." 01392_ OR-Q6W(g) slips back into the shadows. 01392_ Grenade Launcher destroyed. 01392_ Acquired 6 matter. 01395_ Ion Engine destroyed. 01400_ Knocked back. 01406_ as-25015 destroyed. 01406_ as-96438 destroyed. 01406_ Destroyed Asb. Hover Unit. 01406_ as-77423 destroyed. 01406_ as-97255 destroyed. 01408_ Signal Interpreter destroyed. 01408_ System corrupted by crushing effect (+2). 01408_ Knocked back. Map ----- +----------------------------------------------------+ | | | | | | | | | | | | | | | | | ????????????????????????????????? | | ????????????????????????????????? | | ????????????????????????????????? | | ????????????????????????????????? | | ????????????????????????????????? | | ????????????????????????????????? | | ????????????????????????????????? | | ????????????????????????????????? | | ????????????????????????????????? | | ????????????????????????????????? | | ????????????????????????????????? | | ????????????? ????????????????? | | ?????????????? ???????????????? | | ??????????????? ??????????????? | | ???????????????? ??????####????? | | ????????????????? ???### ##???? | | ?????????????????#" ??# #???? | | ?????????????????# ??# @ #???? | | ?????????????????# ?# #???? | | ????????????????## ## %aa #??? | | ????????????????# % ##??? | | ????????????????# % a % #???? | | ????????????????## [## a #%##???? | | ?????????????????#=??# # #????? | | ?????????????????#???# #a#????? | | ?????????????????#%%### ## #????? | | ?????????????????#== #????? | | ??????????? ### ####????? | | ???????? ????????# #???????? | | ??????????????????????# #???????? | | ??????????????????????# #???????? | | ??????????????????????# #???????? | | ??????????????????????# #???????? | | ??????????????????????# #???????? | | ??????????????????????# ####????? | | ??????????????????????# #????? | | ??????????????????????#### #????? | | ?????????????????????????# #????? | | ?????????????????????????# #????? | | ?????????????????????????# #????? | | ?????????????????#######?# #????? | | ????????????????## # #?# #????? | +----------------------------------------------------+ Best States ------------- Heat Dissipation 25 Energy Generation 10 Energy Capacity 250 Matter Stores 300 Matter Capacity 300 Sight Range 16 Terrain Scan Density 10 Core Shielding 20 Evasion (%) 40 Recoil Reduction 2 Item Schematics ----------------- None Robot Schematics ------------------ None Fabricated ------------ Nothing Alien Tech Used ----------------- None Achievements -------------- None Challenges ------------ None Game ------ Seed GaussBladeTriangulator Manual? 0 Play Time 00:12:59 Cumulative 25.1 hours Start 2023.10.22 @ 12:35:55 End 2023.11.23 @ 19:59:59 Sessions 5 Manual Loads 0 Difficulty Rogue Special Mode None Game No. 34 Rogue 34 Adventurer 0 Explorer 0 Win Type - Total 0 Types 0/0/0/0/0/0/0/0/0 Lore% 7 Gallery% 29 Achievement% 20 Wizard Run 0 Options --------- ASCII 0 Keyboard 0 Movement Numpad Keybinds 0 Fullscreen 2 Font 16/SmallcapsGlow Map View 76x50 Tactical HUD 1 Map Filters NONE Filters NONE Steam 1 RUN: 426aaf5f-81cb-491c-8b52-bf9d8eae1898